fUST/lending_fUST_20250604
["ID","MTS","AMOUNT","RATE_DAILY","PERIOD"]
[364064165,1748982644424,-40766.74898115,0.000238,3]
[364064167,1748982644435,-250691.39163773,0.000238,2]
[364064188,1748982644638,-440.0,0.00017534,2]
[364064190,1748982644648,-7237.84289883,0.000238,2]
[364064199,1748982644726,-440.0,0.00017808,2]
[364064201,1748982644736,-450.63,0.00018082,2]
[364064203,1748982644746,-405.0,0.00021742,2]
[364064205,1748982644756,-158.5442955,0.00023342,2]
[364064207,1748982644765,-572.6068135,0.00023342,2]
[364064209,1748982644776,-13384.46946238,0.000238,2]
[364064212,1748982644790,-289371.25047966,0.000238,2]
[364064214,1748982644802,-54720.84288896,0.000238,2]
[364064216,1748982644814,-279.82757984,0.000238,2]
[364064342,1748982646403,-2002.24,0.0002099,10]
[364064344,1748982646413,-3049.96587285,0.000238,2]
[364066332,1748982847977,4648.89152676,0.00017,7]
[364066333,1748983611332,-180.10178005,0.0001569,2]
[364066336,1748983642204,297.467606,0.00013699,2]
[364066342,1748983719044,5000.0,0.0001552,2]
[364066380,1748983832484,-20.13079095,0.0001569,2]
[364066381,1748983832494,-440.85581,0.00015723,2]
[364066382,1748983832504,-255.70765074,0.00015845,2]
[364066383,1748983832514,-198.82329606,0.00015945,2]
[364066384,1748983832524,-300.0,0.00016437,2]
[364066385,1748983832534,-251.0,0.00016437,2]
[364066386,1748983832543,-757.0,0.00016437,2]
[364066387,1748983832553,-174.78930025,0.00016438,2]
[364066391,1748983838393,-205.21069975,0.00016438,2]
[364066392,1748983838403,-537.2966483,0.00016438,2]
[364066394,1748983838414,-440.0,0.00016438,2]
[364066396,1748983838424,-440.0,0.00016438,2]
[364066398,1748983838435,-440.0,0.00016438,2]
[364066400,1748983838446,-500.0,0.00016438,2]
[364066401,1748983838456,-500.0,0.00016438,2]
[364066402,1748983838466,-430.0,0.00016438,2]
[364066403,1748983838476,-430.0,0.00016438,2]
[364066405,1748983838488,-430.0,0.00016438,2]
[364066407,1748983838499,-430.0,0.00016438,2]
[364066409,1748983838509,-390.0,0.00016438,2]
[364066411,1748983838519,-430.0,0.00016438,2]
[364066413,1748983838529,-430.0,0.00016438,2]
[364066415,1748983838543,-156.79959206,0.00016438,2]
[364066417,1748983838552,-430.0,0.00016438,2]
[364066420,1748983838562,-440.0,0.00016438,2]
[364066422,1748983838571,-160.0,0.00016711,2]
[364066424,1748983838580,-440.0,0.00016712,2]
[364066426,1748983838589,-430.0,0.00017295,2]
[364066428,1748983838598,-430.0,0.00017295,2]
[364066430,1748983838607,-430.0,0.00017295,2]
[364066432,1748983838616,-440.0,0.00017295,2]
[364066434,1748983838625,-63404.4489543,0.00017296,2]
[364066436,1748983838635,-440.0,0.00017569,2]
[364066438,1748983838644,-440.0,0.00017843,2]
[364066440,1748983838653,-356.0,0.00017963,2]
[364066441,1748983838663,-217.10844023,0.00018081,2]
[364066442,1748983838672,-440.0,0.00018117,2]
[364066443,1748983838681,-378.74,0.00018391,2]
[364066444,1748983838690,-160.0,0.00018476,2]
[364066445,1748983838699,-229.42821335,0.00018476,2]
[364066446,1748983838709,-160.0,0.00018476,2]
[364066447,1748983838718,-423.63107087,0.00018476,2]
[364066448,1748983838728,-440.0,0.00018629,2]
[364066449,1748983838740,-450.06092932,0.00018629,2]
[364066450,1748983838749,-440.0,0.00018629,2]
[364066451,1748983838759,-567.67101958,0.00018629,2]
[364066452,1748983838768,-440.0,0.00018629,2]
[364066453,1748983838778,-440.0,0.00018629,2]
[364066454,1748983838787,-440.0,0.00018629,2]
[364066455,1748983838797,-230.00739652,0.00018629,2]
[364066457,1748983838807,-440.0,0.00018629,2]
[364066458,1748983838816,-440.0,0.00018707,2]
[364066459,1748983838826,-440.0,0.00018707,2]
[364066460,1748983838835,-440.0,0.00018707,2]
[364066462,1748983838845,-440.0,0.00018707,2]
[364066464,1748983838856,-155.55288919,0.00018707,2]
[364066466,1748983838865,-440.0,0.00018707,2]
[364066468,1748983838875,-390.0,0.00018707,2]
[364066470,1748983838884,-440.0,0.00018707,2]
[364066472,1748983838894,-555.62,0.00018903,2]
[364066474,1748983838903,-440.0,0.00018976,2]
[364066476,1748983838913,-440.0,0.00018976,2]
[364066478,1748983838922,-400.0,0.00018976,2]
[364066480,1748983838932,-208.85139842,0.00018976,2]
[364066482,1748983838942,-440.0,0.0001925,2]
[364066484,1748983838952,-24900.0,0.00019266,2]
[364066486,1748983838962,-440.0,0.00019524,2]
[364066488,1748983838972,-180.842,0.00019795,2]
[364066491,1748983838982,-440.0,0.00019798,2]
[364066493,1748983838993,-440.0,0.00020072,2]
[364066495,1748983839004,-297.467606,0.00020187,2]
[364066497,1748983839014,-440.0,0.00020346,2]
[364066499,1748983839024,-500.0,0.00020547,2]
[364066501,1748983839033,-1196.11,0.000206,2]
[364066503,1748983839043,-440.0,0.0002062,2]
[364066505,1748983839053,-440.0,0.00020894,2]
[364066507,1748983839063,-500.0,0.00021095,3]
[364066509,1748983839073,-338.52,0.00021168,2]
[364066511,1748983839082,-157.16202418,0.00021548,2]
[364066513,1748983839092,-500.0,0.00021643,4]
[364066515,1748983839102,-224.0,0.00022,2]
[364066517,1748983839111,-500.0,0.00022191,5]
[364066519,1748983839121,-440.0,0.00022207,2]
[364066521,1748983839130,-440.0,0.00022207,2]
[364066523,1748983839140,-440.0,0.00022207,2]
[364066525,1748983839149,-440.0,0.00022207,2]
[364066527,1748983839159,-553.36,0.00022207,2]
[364066529,1748983839169,-728.7564356,0.00022219,2]
[364066531,1748983839179,-440.0,0.00022481,2]
[364066533,1748983839189,-440.0,0.00022481,2]
[364066535,1748983839198,-153.0,0.00022493,2]
[364066537,1748983839208,-173.4381982,0.00022493,2]
[364066539,1748983839218,-572.6068135,0.00022493,2]
[364066541,1748983839228,-297.0203863,0.00022493,2]
[364066543,1748983839239,-153.0,0.00022493,2]
[364066545,1748983839249,-459.8745855,0.00022493,2]
[364066547,1748983839259,-247.0255465,0.00022493,2]
[364066549,1748983839268,-153.0,0.00022493,2]
[364066551,1748983839278,-157.8902828,0.00022521,2]
[364066553,1748983839289,-572.6068135,0.00022521,2]
[364066555,1748983839298,-153.0,0.00022521,2]
[364066557,1748983839308,-153.0,0.00022521,2]
[364066559,1748983839318,-572.6068135,0.00022521,2]
[364066561,1748983839328,-572.6068135,0.00022521,2]
[364066563,1748983839337,-153.0,0.00022521,2]
[364066565,1748983839347,-572.6068135,0.00022521,2]
[364066567,1748983839357,-572.6068135,0.00022521,2]
[364066569,1748983839367,-256.1157211,0.00022521,2]
[364066572,1748983839376,-962.0,0.0002257,2]
[364066574,1748983839386,-709.0,0.0002257,2]
[364066576,1748983839397,-2225.0,0.0002257,2]
[364066578,1748983839407,-151.608,0.0002257,2]
[364066580,1748983839416,-196.698,0.0002257,2]
[364066582,1748983839426,-405.0,0.0002257,2]
[364066584,1748983839436,-207.4,0.00022659,2]
[364066586,1748983839446,-500.0,0.00022659,2]
[364066588,1748983839456,-1196.11,0.000227,7]
[364066590,1748983839465,-500.0,0.00022739,6]
[364066592,1748983839475,-440.0,0.00022755,2]
[364066594,1748983839486,-440.0,0.00022755,2]
[364066596,1748983839495,-157.16202418,0.00022797,2]
[364066598,1748983839504,-440.0,0.00023029,2]
[364066600,1748983839514,-440.0,0.00023029,2]
[364066602,1748983839524,-275.5,0.00023151,8]
[364066604,1748983839534,-160.0,0.00023178,3]
[364066606,1748983839544,-427.53,0.00023285,8]
[364066608,1748983839554,-500.0,0.00023287,7]
[364066610,1748983839564,-159.79694846,0.00023288,2]
[364066612,1748983839573,-159.79694846,0.00023288,2]
[364066614,1748983839583,-440.0,0.00023303,2]
[364066616,1748983839593,-440.0,0.00023303,2]
[364066618,1748983839604,-572.6068135,0.00023315,2]
[364066620,1748983839615,-153.0,0.00023315,2]
[364066622,1748983839624,-153.0,0.00023315,2]
[364066624,1748983839634,-153.0,0.00023315,2]
[364066626,1748983839643,-153.0,0.00023315,2]
[364066628,1748983839652,-440.0,0.00023451,2]
[364066630,1748983839661,-7270.83165608,0.00023562,2]
[364066632,1748983839670,-440.0,0.00023577,2]
[364066634,1748983839679,-440.0,0.00023577,2]
[364066636,1748983839688,-440.85581,0.00023585,2]
[364066638,1748983839697,-500.0,0.0002365,2]
[364066640,1748983839706,-1766.405099,0.0002367,3]
[364066642,1748983839715,-9614.97896818,0.0002369,2]
[364066644,1748983839724,-551.9605421,0.000237,2]
[364066646,1748983839733,-1738.0371284,0.000237,2]
[364066648,1748983839743,-4023.79873602,0.000237,2]
[364066649,1748983839752,-168.21129388,0.000237,2]
[364066651,1748983839761,-532.56,0.00023725,2]
[364066653,1748983839769,-551.96054206,0.00023738,2]
[364066655,1748983839777,-1274.48511117,0.00023748,12]
[364066657,1748983839785,-551.96054206,0.00023776,2]
[364066659,1748983839795,-500.0,0.00023799,2]
[364066662,1748983839805,-500.0,0.00023799,2]
[364066663,1748983839815,-500.0,0.00023799,2]
[364066665,1748983839826,-500.0,0.00023799,2]
[364066667,1748983839836,-500.0,0.00023799,2]
[364066670,1748983839846,-500.0,0.00023799,2]
[364066671,1748983839857,-419.58557177,0.00023799,2]
[364066673,1748983839867,-500.0,0.00023799,2]
[364066675,1748983839876,-500.0,0.00023799,2]
[364066678,1748983839886,-500.0,0.00023799,2]
[364066680,1748983839897,-500.0,0.00023799,2]
[364066682,1748983839907,-500.0,0.00023799,2]
[364066685,1748983839927,-638.82456347,0.00023799,2]
[364066687,1748983839940,-600.0,0.00023799,2]
[364066689,1748983839950,-160.0,0.000238,3]
[364066691,1748983839960,-229.42821335,0.000238,3]
[364066693,1748983839970,-423.63107087,0.000238,3]
[364066695,1748983839979,-23783.30121337,0.000238,2]
[364066697,1748983839990,-46328.67893729,0.000238,3]
[364066699,1748983839999,-319425.28084151,0.000238,2]
[364066753,1748983840519,-1101.379751,0.000238,2]
[364066756,1748983840532,-1383.20492776,0.000238,2]
[364066994,1748983843247,-430.0,0.00016438,2]
[364066996,1748983843258,-244.16044759,0.000179,2]
[364066999,1748983843269,-244.16044757,0.00018141,2]
[364067000,1748983843279,-109770.97128719,0.000238,2]
[364067009,1748983843356,-244.16044757,0.00018383,2]
[364067011,1748983843366,-2842.64633007,0.000238,2]
[364070687,1748984036943,4351.10847324,0.00017,7]
[364070702,1748984976184,279.729286,0.00013699,2]
[364070710,1748985032373,-900.1571553,0.00015948,2]
[364070711,1748985032431,-4099.8428447,0.00015948,2]
[364070712,1748985032441,-300.0,0.00016435,2]
[364070713,1748985032452,-998.76090222,0.00016435,2]
[364070714,1748985032463,-201.23909778,0.00016435,2]
[364070715,1748985032473,-172.1159415,0.00017031,2]
[364070716,1748985032485,-261.0,0.00017294,2]
[364070717,1748985032495,-300.0,0.00017294,2]
[364070718,1748985032504,-127.66653975,0.00017294,2]
[364070758,1748985038591,-172.33346025,0.00017294,2]
[364070760,1748985038602,-440.0,0.00017295,2]
[364070762,1748985038611,-430.0,0.00017295,2]
[364070764,1748985038621,-430.0,0.00017295,2]
[364070766,1748985038631,-430.0,0.00017295,2]
[364070768,1748985038640,-430.0,0.00017295,2]
[364070771,1748985038650,-219.7444029,0.000179,2]
[364070772,1748985038659,-219.74440281,0.00018141,2]
[364070775,1748985038669,-219.74440281,0.00018383,2]
[364070777,1748985038678,-440.0,0.00018384,2]
[364070778,1748985038688,-24900.0,0.00018385,2]
[364070781,1748985038699,-160.0,0.00018514,2]
[364070783,1748985038708,-212.86879254,0.00018514,2]
[364070785,1748985038718,-229.42821335,0.00018514,2]
[364070787,1748985038727,-160.0,0.00018514,2]
[364070789,1748985038736,-423.63107087,0.00018514,2]
[364070791,1748985038746,-219.74440281,0.00018624,2]
[364070793,1748985038755,-440.0,0.00018658,2]
[364070795,1748985038764,-219.74440281,0.00018866,2]
[364070797,1748985038774,-440.0,0.00018932,2]
[364070799,1748985038783,-219.74440281,0.00019107,2]
[364070801,1748985038792,-440.0,0.00019206,2]
[364070803,1748985038801,-6504.7732684,0.00019236,2]
[364070805,1748985038810,-219.74440281,0.00019348,2]
[364070806,1748985038819,-440.0,0.0001948,2]
[364070809,1748985038829,-219.74440281,0.0001959,2]
[364070811,1748985038838,-440.0,0.00019754,2]
[364070813,1748985038848,-219.74440281,0.00019831,2]
[364070814,1748985038857,-440.0,0.00020028,2]
[364070817,1748985038866,-219.74440281,0.00020072,2]
[364070819,1748985038876,-279.729286,0.00020187,2]
[364070821,1748985038886,-440.0,0.00020302,2]
[364070823,1748985038895,-219.74440281,0.00020314,3]
[364070825,1748985038904,-219.74440281,0.00020555,3]
[364070827,1748985038913,-440.0,0.00020576,2]
[364070829,1748985038922,-219.74440281,0.00020797,4]
[364070831,1748985038932,-440.0,0.0002085,2]
[364070833,1748985038942,-3000.0,0.00021,2]
[364070835,1748985038952,-180.842,0.00021,2]
[364070837,1748985038962,-3000.0,0.0002101,2]
[364070839,1748985038971,-440.0,0.00021019,2]
[364070841,1748985038981,-440.0,0.00021019,2]
[364070843,1748985038991,-519.93,0.00021019,2]
[364070845,1748985039000,-3000.0,0.0002102,2]
[364070847,1748985039010,-3000.0,0.0002103,2]
[364070849,1748985039020,-219.74440281,0.00021038,4]
[364070851,1748985039029,-3000.0,0.0002104,2]
[364070853,1748985039038,-3000.0,0.0002105,2]
[364070855,1748985039049,-3000.0,0.0002106,2]
[364070857,1748985039058,-3000.0,0.0002107,2]
[364070859,1748985039069,-3000.0,0.0002108,2]
[364070861,1748985039078,-3000.0,0.0002109,2]
[364070863,1748985039088,-3000.0,0.000211,2]
[364070865,1748985039097,-3000.0,0.0002111,2]
[364070867,1748985039107,-3000.0,0.0002112,2]
[364070869,1748985039116,-440.0,0.00021124,2]
[364070871,1748985039125,-3000.0,0.0002113,2]
[364070873,1748985039135,-3000.0,0.0002114,2]
[364070875,1748985039144,-1668.53,0.0002114,10]
[364070877,1748985039154,-1390.44,0.0002114,10]
[364070879,1748985039163,-3000.0,0.0002115,2]
[364070881,1748985039173,-3000.0,0.0002116,2]
[364070883,1748985039183,-3000.0,0.0002117,2]
[364070885,1748985039192,-3000.0,0.0002118,2]
[364070887,1748985039202,-3000.0,0.0002119,2]
[364070889,1748985039211,-3000.0,0.000212,2]
[364070892,1748985039222,-3000.0,0.0002121,2]
[364070894,1748985039231,-500.0,0.00021219,2]
[364070896,1748985039240,-3000.0,0.0002122,2]
[364070898,1748985039250,-3000.0,0.0002123,2]
[364070900,1748985039259,-3000.0,0.0002124,2]
[364070902,1748985039268,-3000.0,0.0002125,2]
[364070904,1748985039277,-3000.0,0.0002126,2]
[364070906,1748985039287,-5914.185436,0.0002127,2]
[364070908,1748985039296,-219.74440281,0.00021279,5]
[364070910,1748985039306,-440.0,0.00021293,2]
[364070912,1748985039320,-440.0,0.00021293,2]
[364070914,1748985039329,-519.93,0.00021293,2]
[364070916,1748985039339,-927.58,0.000213,2]
[364070918,1748985039349,-440.0,0.00021398,2]
[364070920,1748985039359,-219.74440281,0.00021521,5]
[364070922,1748985039368,-440.0,0.00021567,2]
[364070924,1748985039378,-440.0,0.00021567,2]
[364070926,1748985039388,-519.93,0.00021567,2]
[364070928,1748985039398,-440.0,0.00021672,2]
[364070930,1748985039408,-219.74440281,0.00021762,5]
[364070932,1748985039417,-500.0,0.00021767,3]
[364070934,1748985039427,-405.0,0.00021774,2]
[364070936,1748985039437,-440.0,0.00021841,2]
[364070938,1748985039446,-440.0,0.00021841,2]
[364070940,1748985039455,-519.93,0.00021841,2]
[364070942,1748985039465,-366.3,0.00021946,2]
[364070944,1748985039475,-219.74440281,0.00022003,6]
[364070946,1748985039484,-440.0,0.00022115,2]
[364070948,1748985039494,-495.02,0.00022115,2]
[364070950,1748985039504,-519.93,0.00022115,2]
[364070952,1748985039513,-219.74440281,0.00022245,6]
[364070954,1748985039523,-500.0,0.00022315,4]
[364070956,1748985039533,-206.96,0.00022389,2]
[364070958,1748985039543,-519.93,0.00022389,2]
[364070960,1748985039553,-219.74440281,0.00022486,7]
[364070963,1748985039564,-156.305,0.0002257,2]
[364070964,1748985039573,-962.0,0.0002257,2]
[364070966,1748985039583,-709.0,0.0002257,2]
[364070969,1748985039592,-2225.0,0.0002257,2]
[364070971,1748985039602,-519.93,0.00022663,2]
[364070973,1748985039611,-219.74440281,0.00022728,7]
[364070975,1748985039620,-207.4,0.00022782,2]
[364070977,1748985039630,-927.58,0.000228,7]
[364070979,1748985039639,-500.0,0.00022863,5]
[364070981,1748985039649,-159.416376,0.00022892,14]
[364070983,1748985039658,-159.416376,0.00022932,2]
[364070985,1748985039668,-519.93,0.00022937,2]
[364070987,1748985039678,-219.74440281,0.00022969,8]
[364070989,1748985039688,-159.79694846,0.00022986,2]
[364070991,1748985039697,-300.71566544,0.00023,3]
[364070993,1748985039707,-364.5107659,0.00023178,2]
[364070995,1748985039717,-364.5107659,0.00023178,2]
[364070997,1748985039726,-364.5107659,0.00023178,2]
[364070999,1748985039736,-364.5107659,0.00023178,2]
[364071001,1748985039746,-364.5107659,0.00023178,2]
[364071003,1748985039757,-364.5107659,0.00023178,2]
[364071005,1748985039766,-364.5107659,0.00023178,2]
[364071007,1748985039776,-364.5107659,0.00023178,2]
[364071009,1748985039786,-364.5107659,0.00023178,2]
[364071011,1748985039803,-330.2898307,0.00023178,2]
[364071013,1748985039813,-219.74440281,0.0002321,8]
[364071015,1748985039823,-519.93,0.00023211,2]
[364071017,1748985039834,-159.79694846,0.00023288,2]
[364071019,1748985039843,-154.2001919,0.00023315,2]
[364071021,1748985039854,-317.088591,0.00023315,2]
[364071023,1748985039863,-153.0,0.00023315,2]
[364071025,1748985039873,-176.5641048,0.00023315,2]
[364071027,1748985039882,-153.0,0.00023315,2]
[364071029,1748985039892,-1145.213627,0.00023315,2]
[364071031,1748985039902,-158.5442955,0.00023315,2]
[364071049,1748985040040,-572.6068135,0.00023315,2]
[364071051,1748985040051,-176.5641048,0.00023315,2]
[364071053,1748985040060,-158.5442955,0.00023315,2]
[364071055,1748985040071,-176.5641048,0.00023315,2]
[364071057,1748985040080,-153.0,0.00023315,2]
[364071059,1748985040090,-153.0,0.00023315,2]
[364071061,1748985040099,-572.6068135,0.00023315,2]
[364071063,1748985040110,-158.5442955,0.00023315,2]
[364071065,1748985040120,-176.5641048,0.00023315,2]
[364071067,1748985040129,-572.6068135,0.00023315,2]
[364071069,1748985040138,-153.0,0.00023315,2]
[364071071,1748985040148,-158.5442955,0.00023315,2]
[364071073,1748985040158,-176.5641048,0.00023315,2]
[364071075,1748985040168,-153.0,0.00023315,2]
[364071077,1748985040178,-572.6068135,0.00023315,2]
[364071079,1748985040189,-176.5641048,0.00023315,2]
[364071081,1748985040198,-572.6068135,0.00023315,2]
[364071083,1748985040209,-158.5442955,0.00023315,2]
[364071085,1748985040218,-176.5641048,0.00023315,2]
[364071088,1748985040228,-1145.213627,0.00023315,2]
[364071089,1748985040238,-153.0,0.00023315,2]
[364071092,1748985040248,-153.0,0.00023315,2]
[364071094,1748985040258,-317.088591,0.00023315,2]
[364071095,1748985040267,-176.5641048,0.00023315,2]
[364071098,1748985040277,-153.0,0.00023315,2]
[364071099,1748985040286,-176.5641048,0.00023315,2]
[364071102,1748985040296,-153.0,0.00023315,2]
[364071104,1748985040306,-345.6249252,0.00023315,2]
[364071106,1748985040319,-306.0,0.00023315,2]
[364071107,1748985040328,-572.6068135,0.00023315,2]
[364071109,1748985040338,-306.0,0.00023315,2]
[364071112,1748985040349,-159.416376,0.00023323,3]
[364071114,1748985040359,-219.74440281,0.00023452,9]
[364071116,1748985040368,-427.53,0.0002348,8]
[364071118,1748985040378,-275.5,0.0002348,8]
[364071120,1748985040388,-519.93,0.00023485,2]
[364071122,1748985040398,-159.416376,0.0002352,10]
[364071124,1748985040407,-7270.83165608,0.00023562,2]
[364071126,1748985040417,-159.416376,0.00023638,20]
[364071128,1748985040426,-500.0,0.0002365,2]
[364071130,1748985040436,-500.0,0.0002365,2]
[364071132,1748985040445,-400.79188243,0.0002365,2]
[364071133,1748985040459,-1766.405099,0.0002367,3]
[364071135,1748985040470,-219.74440281,0.00023693,9]
[364071137,1748985040480,-347.60742568,0.00023699,2]
[364071140,1748985040490,-347.60742568,0.00023699,2]
[364071142,1748985040502,-347.60742568,0.000237,2]
[364071144,1748985040516,-347.60742568,0.000237,2]
[364071146,1748985040526,-347.60742568,0.000237,2]
[364071148,1748985040535,-519.93,0.00023759,2]
[364071150,1748985040545,-70596.92,0.0002378,7]
[364071152,1748985040555,-160.0,0.000238,3]
[364071153,1748985040564,-53609.18301351,0.000238,2]
[364071155,1748985040574,-46328.67893729,0.000238,3]
[364071157,1748985040584,-76618.23521558,0.000238,2]
[364071439,1748985043404,-5000.0,0.00017121,2]
[364071441,1748985043415,-1158.7,0.0002116,10]
[364071443,1748985043425,-730.7762018,0.000238,2]
[364071448,1748985043460,-12279.62970664,0.000238,2]
[364071450,1748985043471,-120003.46127696,0.000238,2]
[364071731,1748985046635,-730.65721961,0.000238,2]
[364074149,1748985497050,1351.9,0.00024658,120]
[364074150,1748985497327,1109.56630597,0.00024658,120]
[364074151,1748985521796,-2544.51775844,0.00024144,120]
[364074152,1748985521824,-1936.83767333,0.00024144,120]
[364074153,1748985521852,-5000.0,0.00024144,120]
[364074154,1748985521881,-266.81898354,0.00024144,120]
[364074155,1748985521909,-543.23824261,0.00024144,120]
[364074156,1748985521937,-911.79483753,0.00024144,120]
[364074157,1748985521963,-841.01849823,0.00024144,120]
[364074158,1748985521990,-685.23489054,0.00024144,120]
[364074159,1748985522018,-240.82074905,0.00024144,120]
[364074160,1748985522046,-2000.0,0.00024144,120]
[364074161,1748985522072,-1095.69766954,0.00024144,120]
[364074162,1748985522099,-2589.51663496,0.00024144,120]
[364074163,1748985522125,-2497.44071937,0.00024144,120]
[364074164,1748985522152,-1003.62735948,0.00024144,120]
[364074165,1748985522180,-1003.00407642,0.00024144,120]
[364074166,1748985522205,-462.29259004,0.00024144,120]
[364074167,1748985522231,-247.83602056,0.00024144,120]
[364074168,1748985522258,-424.65534797,0.00024144,120]
[364074169,1748985522284,-214.94414928,0.00024144,120]
[364074170,1748985522311,-315.55635729,0.00024144,120]
[364074171,1748985522337,-202.84570734,0.00024144,120]
[364074172,1748985522364,-433.59859833,0.00024144,120]
[364074173,1748985522391,-531.9932251,0.00024144,120]
[364074174,1748985522419,-218.40614077,0.00024144,120]
[364074175,1748985522447,-273.0,0.00024144,120]
[364074176,1748985522474,-1000.0,0.00024144,120]
[364074177,1748985522501,-1000.0,0.00024144,120]
[364074178,1748985522526,-500.0,0.00024144,120]
[364074179,1748985522552,-995.0,0.00024144,120]
[364074180,1748985522580,-241.03390022,0.00024144,120]
[364074181,1748985522606,-808.05166536,0.00024144,120]
[364074182,1748985522633,-241.34626524,0.00024144,120]
[364074183,1748985522660,-202.21008085,0.00024144,120]
[364074184,1748985522687,-519.17397698,0.00024144,120]
[364074185,1748985522713,-574.58943765,0.00024144,120]
[364074186,1748985522739,-1556.24715529,0.00024144,120]
[364074187,1748985522767,-1372.92370486,0.00024144,120]
[364074188,1748985522793,-2436.6456808,0.00024144,120]
[364074189,1748985522823,-548.24076198,0.00024144,120]
[364074190,1748985522850,-303365.237,0.00024144,120]
[364074191,1748985522876,-16335.62643663,0.00024144,120]
[364074192,1748985522903,-815.65332296,0.00024144,120]
[364074193,1748985529699,500.0,0.00023155,120]
[364074194,1748985530458,500.0,0.00023155,120]
[364074195,1748985531249,500.0,0.00023155,120]
[364074196,1748985532014,500.0,0.00023155,120]
[364074197,1748985532843,500.0,0.00023155,120]
[364074198,1748985533605,500.0,0.00023155,120]
[364074199,1748985534368,500.0,0.00023155,120]
[364074200,1748985535255,500.0,0.00023155,120]
[364074201,1748985536026,500.0,0.00023155,120]
[364074202,1748985536836,500.0,0.00023155,120]
[364074203,1748985537604,500.0,0.00023155,120]
[364074204,1748985538373,500.0,0.00023155,120]
[364074205,1748985539137,500.0,0.00023155,120]
[364074206,1748985539902,500.0,0.00023155,120]
[364074207,1748985540709,500.0,0.00023155,120]
[364074208,1748985541533,500.0,0.00023155,120]
[364074209,1748985542288,500.0,0.00023155,120]
[364074210,1748985543110,500.0,0.00023155,120]
[364074211,1748985543876,500.0,0.00023155,120]
[364074212,1748985544641,500.0,0.00023155,120]
[364074213,1748985545418,500.0,0.00023155,120]
[364074214,1748985546174,500.0,0.00023155,120]
[364074215,1748985546945,500.0,0.00023155,120]
[364074216,1748985547733,500.0,0.00023155,120]
[364074217,1748985548503,500.0,0.00023155,120]
[364074218,1748985549265,500.0,0.00023155,120]
[364074219,1748985550029,500.0,0.00023155,120]
[364074220,1748985550830,500.0,0.00023155,120]
[364074221,1748985551713,500.0,0.00023155,120]
[364074222,1748985552440,500.0,0.00023155,120]
[364074223,1748985552798,1109.56630597,0.00024658,120]
[364074224,1748985553202,500.0,0.00023155,120]
[364074225,1748985553961,500.0,0.00023155,120]
[364074226,1748985554730,500.0,0.00023155,120]
[364074227,1748985555523,500.0,0.00023155,120]
[364074228,1748985556295,500.0,0.00023155,120]
[364074229,1748985557060,500.0,0.00023155,120]
[364074230,1748985557827,500.0,0.00023155,120]
[364074231,1748985558595,500.0,0.00023155,120]
[364074232,1748985559365,500.0,0.00023155,120]
[364074233,1748985560145,500.0,0.00023155,120]
[364074234,1748985560939,500.0,0.00023155,120]
[364074235,1748985561702,500.0,0.00023155,120]
[364074236,1748985562551,500.0,0.00023155,120]
[364074237,1748985563232,500.0,0.00023155,120]
[364074238,1748985564015,500.0,0.00023155,120]
[364074239,1748985564791,500.0,0.00023155,120]
[364074240,1748985565557,293.27,0.00023155,120]
[364074241,1748985572755,150.5,0.0002379,120]